[Event "*** Titled Tuesday Blitz"]
[Site "Chess.com"]
[Date "2020.10.27"]
[Round "6"]
[White "Fandorine"]
[Black "maciek_92"]
[Result "0-1"]
[WhiteElo "2844"]
[BlackElo "2722"]
[TimeControl "180+1"]
[EndTime "11:10:10 PDT"]
[Termination "maciek_92 won by resignation"]

1. e4 {[%clk 0:03:00.9]} 1... c5 {[%clk 0:03:00.6]} 2. b3 {[%clk 0:02:55.5]}
2... Nc6 {[%clk 0:02:58.7]} 3. Bb2 {[%clk 0:02:54.4]} 3... e6 {[%clk 0:02:58.3]}
4. f4 {[%clk 0:02:50.4]} 4... d5 {[%clk 0:02:51.3]} 5. e5 {[%clk 0:02:50.1]}
5... g5 {[%clk 0:02:47.4]} 6. Qh5 {[%clk 0:02:32.2]} 6... gxf4 {[%clk 0:02:30]}
7. Nh3 {[%clk 0:02:32]} 7... Nge7 {[%clk 0:02:22.1]} 8. Nxf4 {[%clk 0:02:13.3]}
8... Ng6 {[%clk 0:02:21.9]} 9. g3 {[%clk 0:02:07.2]} 9... Bg7 {[%clk 0:02:18.9]}
10. Bb5 {[%clk 0:02:04.5]} 10... Bd7 {[%clk 0:02:18]} 11. Bxc6 {[%clk
0:02:03.7]} 11... Bxc6 {[%clk 0:02:18.9]} 12. Rf1 {[%clk 0:01:57.2]} 12... Qc7
{[%clk 0:02:13.5]} 13. d4 {[%clk 0:01:41.8]} 13... cxd4 {[%clk 0:02:09.3]} 14.
Bxd4 {[%clk 0:01:42.7]} 14... Bxe5 {[%clk 0:01:56.5]} 15. Bxe5 {[%clk
0:01:32.1]} 15... Qxe5+ {[%clk 0:01:56.1]} 16. Qxe5 {[%clk 0:01:32.2]} 16...
Nxe5 {[%clk 0:01:57]} 17. Nd2 {[%clk 0:01:32.6]} 17... h5 {[%clk 0:01:45.5]} 18.
O-O-O {[%clk 0:01:31.3]} 18... Ke7 {[%clk 0:01:32.8]} 19. Rde1 {[%clk
0:01:30.5]} 19... Kd6 {[%clk 0:01:29.4]} 20. Rd1 {[%clk 0:01:00.8]} 20... Ke7
{[%clk 0:01:02.5]} 21. Rfe1 {[%clk 0:00:52.8]} 21... f6 {[%clk 0:00:57.8]} 22.
Re3 {[%clk 0:00:29.9]} 22... Rag8 {[%clk 0:00:54.6]} 23. Rde1 {[%clk 0:00:27.5]}
23... d4 {[%clk 0:00:50.2]} 24. Rxe5 {[%clk 0:00:25.9]} 24... fxe5 {[%clk
0:00:50.1]} 25. Rxe5 {[%clk 0:00:26.8]} 25... h4 {[%clk 0:00:46.8]} 26. Rxe6+
{[%clk 0:00:23.4]} 26... Kd7 {[%clk 0:00:46.4]} 27. Nc4 {[%clk 0:00:23.1]} 27...
hxg3 {[%clk 0:00:45.7]} 28. Ne5+ {[%clk 0:00:18.8]} 28... Kc7 {[%clk 0:00:46]}
29. hxg3 {[%clk 0:00:19.2]} 29... Re8 {[%clk 0:00:26.6]} 30. Nxc6 {[%clk
0:00:15.5]} 30... Rxe6 {[%clk 0:00:18.2]} 31. Nxe6+ {[%clk 0:00:16.4]} 31...
Kxc6 {[%clk 0:00:16.9]} 32. Nxd4+ {[%clk 0:00:17.3]} 32... Kd5 {[%clk
0:00:17.5]} 33. Nb5 {[%clk 0:00:16.9]} 33... a6 {[%clk 0:00:17.3]} 34. Nc3+
{[%clk 0:00:17.3]} 34... Kd4 {[%clk 0:00:17.5]} 35. Ne2+ {[%clk 0:00:17.3]}
35... Ke3 {[%clk 0:00:17.8]} 36. Nf4 {[%clk 0:00:17.9]} 36... Rg8 {[%clk
0:00:17.7]} 37. Nd5+ {[%clk 0:00:12.8]} 37... Kd4 {[%clk 0:00:16]} 38. Nf4
{[%clk 0:00:10.3]} 38... Ke4 {[%clk 0:00:16.3]} 39. Ne6 {[%clk 0:00:09.7]} 39...
Kd5 {[%clk 0:00:11.7]} 40. Nf4+ {[%clk 0:00:09.3]} 40... Ke5 {[%clk 0:00:12.2]}
41. Ne2 {[%clk 0:00:08]} 41... Ke4 {[%clk 0:00:12.8]} 42. Kd2 {[%clk 0:00:08.4]}
42... Rd8+ {[%clk 0:00:12.6]} 43. Kc1 {[%clk 0:00:08.7]} 43... Kf3 {[%clk
0:00:11.6]} 44. Nf4 {[%clk 0:00:07.4]} 44... Kxg3 {[%clk 0:00:11.5]} 45. Ne6
{[%clk 0:00:07.7]} 45... Rd5 {[%clk 0:00:10.5]} 46. c4 {[%clk 0:00:05.5]} 46...
Re5 {[%clk 0:00:09.7]} 47. Nd4 {[%clk 0:00:04.2]} 47... Kf4 {[%clk 0:00:07.8]}
48. Kd2 {[%clk 0:00:04.6]} 48... Ke4 {[%clk 0:00:08.2]} 49. Nc2 {[%clk
0:00:02.8]} 49... Rh5 {[%clk 0:00:08.6]} 50. Kc3 {[%clk 0:00:03.1]} 50... Rh2
{[%clk 0:00:08.4]} 51. Nb4 {[%clk 0:00:02.8]} 51... Ke5 {[%clk 0:00:06.8]} 52.
Nd3+ {[%clk 0:00:02.8]} 52... Ke4 {[%clk 0:00:07.3]} 53. Nc5+ {[%clk 0:00:03.1]}
53... Ke5 {[%clk 0:00:07.5]} 54. Nxb7 {[%clk 0:00:03.7]} 54... Rxa2 {[%clk
0:00:08.1]} 55. Kb4 {[%clk 0:00:03.8]} 55... Ke6 {[%clk 0:00:07.8]} 56. Nc5+
{[%clk 0:00:03.5]} 56... Kd6 {[%clk 0:00:08.1]} 57. Na4 {[%clk 0:00:04.3]} 57...
Kc7 {[%clk 0:00:08.1]} 58. Ka5 {[%clk 0:00:04.4]} 58... Kb7 {[%clk 0:00:08.7]}
59. Kb4 {[%clk 0:00:04.2]} 59... Rh2 {[%clk 0:00:07.5]} 60. Nc3 {[%clk
0:00:04.4]} 60... Kb6 {[%clk 0:00:07.5]} 61. Nd5+ {[%clk 0:00:04.3]} 61... Kc6
{[%clk 0:00:08]} 62. Nc3 {[%clk 0:00:04.5]} 62... Rh8 {[%clk 0:00:07.4]} 63. Ne2
{[%clk 0:00:03.5]} 63... Rb8+ {[%clk 0:00:06.8]} 64. Kc3 {[%clk 0:00:03.8]}
64... a5 {[%clk 0:00:05]} 65. Nd4+ {[%clk 0:00:03.8]} 65... Kc5 {[%clk 0:00:05]}
66. Ne6+ {[%clk 0:00:04.2]} 66... Kd6 {[%clk 0:00:05.5]} 67. Nd4 {[%clk
0:00:04.1]} 67... Rh8 {[%clk 0:00:06.2]} 68. Nc2 {[%clk 0:00:02]} 68... Kc5
{[%clk 0:00:06.4]} 69. Ne1 {[%clk 0:00:01.8]} 69... Rh3+ {[%clk 0:00:06.2]} 70.
Nd3+ {[%clk 0:00:02.2]} 70... Kc6 {[%clk 0:00:07.1]} 71. Kd4 {[%clk 0:00:02.6]}
71... Rh4+ {[%clk 0:00:07.5]} 72. Kc3 {[%clk 0:00:03.1]} 72... Kb6 {[%clk
0:00:08.2]} 73. Kc2 {[%clk 0:00:02.7]} 73... Rh3 {[%clk 0:00:08.7]} 74. Kc3
{[%clk 0:00:03]} 74... Rh2 {[%clk 0:00:09.3]} 75. Kd4 {[%clk 0:00:03.2]} 75...
Kc6 {[%clk 0:00:08.8]} 76. Kc3 {[%clk 0:00:03.6]} 76... Rh3 {[%clk 0:00:09.1]}
77. Kd4 {[%clk 0:00:04]} 77... Kd6 {[%clk 0:00:09.7]} 78. Kc3 {[%clk 0:00:03.9]}
78... Rh2 {[%clk 0:00:09.9]} 79. Kd4 {[%clk 0:00:04.4]} 79... Rc2 {[%clk
0:00:10.4]} 80. Nf4 {[%clk 0:00:03.2]} 80... Kc6 {[%clk 0:00:09.9]} 81. Nd5
{[%clk 0:00:03.1]} 81... Rh2 {[%clk 0:00:08.8]} 82. Nf4 {[%clk 0:00:03.2]} 82...
Rf2 {[%clk 0:00:07.7]} 83. Nd3 {[%clk 0:00:03.4]} 83... Rc2 {[%clk 0:00:08.2]}
84. Ne5+ {[%clk 0:00:03]} 84... Kb6 {[%clk 0:00:08.3]} 85. Nd3 {[%clk
0:00:03.4]} 85... Kb7 {[%clk 0:00:08.7]} 86. Kd5 {[%clk 0:00:03]} 86... Kb6
{[%clk 0:00:08.8]} 87. Kd4 {[%clk 0:00:03.5]} 87... Ka7 {[%clk 0:00:08.3]} 88.
Nf4 {[%clk 0:00:02.8]} 88... Ka6 {[%clk 0:00:08.1]} 89. Nd3 {[%clk 0:00:03.1]}
89... Kb6 {[%clk 0:00:07.8]} 90. Nf4 {[%clk 0:00:03.4]} 90... Rf2 {[%clk
0:00:07]} 91. Nd3 {[%clk 0:00:03.8]} 91... Rd2 {[%clk 0:00:07.1]} 92. Kc3 {[%clk
0:00:04]} 92... Rh2 {[%clk 0:00:08]} 93. b4 {[%clk 0:00:04.3]} 93... a4 {[%clk
0:00:05.8]} 94. Nc5 {[%clk 0:00:04.7]} 94... a3 {[%clk 0:00:05.7]} 95. Na4+
{[%clk 0:00:03.2]} 95... Ka6 {[%clk 0:00:04.6]} 96. b5+ {[%clk 0:00:03.4]} 96...
Ka5 {[%clk 0:00:04.8]} 97. Nc5 {[%clk 0:00:04]} 97... a2 {[%clk 0:00:04.2]} 98.
Nb3+ {[%clk 0:00:04.6]} 98... Ka4 {[%clk 0:00:04.8]} 99. Na1 {[%clk 0:00:05.3]}
99... Ka3 {[%clk 0:00:04.4]} 100. b6 {[%clk 0:00:05.7]} 100... Rb2 {[%clk
0:00:04.6]} 101. c5 {[%clk 0:00:05.9]} 101... Rb1 {[%clk 0:00:05]} 102. Nc2+
{[%clk 0:00:06.3]} 102... Ka4 {[%clk 0:00:05.4]} 103. Kd3 {[%clk 0:00:03.7]}
103... Rb3+ {[%clk 0:00:05.5]} 104. Kd4 {[%clk 0:00:03.4]} 104... Rb2 {[%clk
0:00:04.9]} 105. b7 {[%clk 0:00:03.5]} 105... Rxb7 {[%clk 0:00:04.6]} 106. c6
{[%clk 0:00:04.2]} 106... Rb2 {[%clk 0:00:04.4]} 0-1

[Event "*** Titled Tuesday Blitz"]
[Site "Chess.com"]
[Date "2020.10.27"]
[Round "6"]
[White "poppy73"]
[Black "JoliyRoger"]
[Result "1/2-1/2"]
[WhiteElo "2223"]
[BlackElo "2384"]
[TimeControl "180+1"]
[EndTime "11:11:32 PDT"]
[Termination "Game drawn by 50-move rule"]

1. e4 {[%clk 0:03:00.9]} 1... c6 {[%clk 0:02:01.4]} 2. Nf3 {[%clk 0:02:59]} 2...
d5 {[%clk 0:01:56.7]} 3. Nc3 {[%clk 0:02:58.6]} 3... Nf6 {[%clk 0:01:55.5]} 4.
e5 {[%clk 0:02:56.6]} 4... Ne4 {[%clk 0:01:55.4]} 5. d4 {[%clk 0:02:57.1]} 5...
Nxc3 {[%clk 0:01:54.9]} 6. bxc3 {[%clk 0:02:57]} 6... e6 {[%clk 0:01:55.8]} 7.
c4 {[%clk 0:02:43.7]} 7... b6 {[%clk 0:01:55.1]} 8. cxd5 {[%clk 0:02:40.7]} 8...
cxd5 {[%clk 0:01:55.1]} 9. Bd3 {[%clk 0:02:31.7]} 9... Be7 {[%clk 0:01:53.8]}
10. O-O {[%clk 0:02:29.7]} 10... Ba6 {[%clk 0:01:54.2]} 11. Bxa6 {[%clk
0:02:18.2]} 11... Nxa6 {[%clk 0:01:53.6]} 12. c4 {[%clk 0:02:18.6]} 12... Nc7
{[%clk 0:01:53.9]} 13. c5 {[%clk 0:02:09.8]} 13... bxc5 {[%clk 0:01:49.8]} 14.
dxc5 {[%clk 0:02:08.5]} 14... Bxc5 {[%clk 0:01:28.7]} 15. Qc2 {[%clk 0:02:08.1]}
15... Be7 {[%clk 0:01:05.3]} 16. Qc6+ {[%clk 0:02:06.9]} 16... Qd7 {[%clk
0:01:03.6]} 17. Nd4 {[%clk 0:01:52.7]} 17... Qxc6 {[%clk 0:01:01.9]} 18. Nxc6
{[%clk 0:01:52.8]} 18... Kd7 {[%clk 0:01:01.1]} 19. Nd4 {[%clk 0:01:49.2]} 19...
Bc5 {[%clk 0:00:52.4]} 20. Nb3 {[%clk 0:01:48.2]} 20... Bb6 {[%clk 0:00:52.5]}
21. Ba3 {[%clk 0:01:44.8]} 21... Nb5 {[%clk 0:00:50.7]} 22. Bb2 {[%clk
0:01:44.7]} 22... Rhc8 {[%clk 0:00:50]} 23. Rac1 {[%clk 0:01:44.3]} 23... a6
{[%clk 0:00:43.9]} 24. a4 {[%clk 0:01:40.5]} 24... Nc7 {[%clk 0:00:43.5]} 25.
Rc2 {[%clk 0:01:34.1]} 25... Rab8 {[%clk 0:00:43]} 26. Bd4 {[%clk 0:01:05.9]}
26... Bxd4 {[%clk 0:00:42]} 27. Nxd4 {[%clk 0:01:05.9]} 27... Rb4 {[%clk
0:00:42.3]} 28. Nc6 {[%clk 0:01:02.3]} 28... Rc4 {[%clk 0:00:35.5]} 29. Rxc4
{[%clk 0:00:51.5]} 29... dxc4 {[%clk 0:00:35.5]} 30. Na5 {[%clk 0:00:50.6]}
30... Nd5 {[%clk 0:00:34.7]} 31. Rc1 {[%clk 0:00:50.3]} 31... c3 {[%clk
0:00:34.4]} 32. Kf1 {[%clk 0:00:49.9]} 32... Rc5 {[%clk 0:00:34.6]} 33. Nb3
{[%clk 0:00:49.3]} 33... Rc4 {[%clk 0:00:35]} 34. a5 {[%clk 0:00:48.1]} 34...
Rb4 {[%clk 0:00:34.8]} 35. Nc5+ {[%clk 0:00:48.1]} 35... Kc6 {[%clk 0:00:33.5]}
36. Nxa6 {[%clk 0:00:48.3]} 36... Rb2 {[%clk 0:00:32.2]} 37. Ke1 {[%clk
0:00:42.7]} 37... Ra2 {[%clk 0:00:32.1]} 38. Rxc3+ {[%clk 0:00:40.2]} 38... Kb5
{[%clk 0:00:28.8]} 39. Nc7+ {[%clk 0:00:28.6]} 39... Kb4 {[%clk 0:00:28.9]} 40.
Nxd5+ {[%clk 0:00:27.8]} 40... exd5 {[%clk 0:00:29.5]} 41. Rc7 {[%clk
0:00:26.5]} 41... d4 {[%clk 0:00:28.3]} 42. Rxf7 {[%clk 0:00:23.8]} 42... Kc3
{[%clk 0:00:28.7]} 43. e6 {[%clk 0:00:17.9]} 43... Kd3 {[%clk 0:00:28.3]} 44. f4
{[%clk 0:00:17.9]} 44... Re2+ {[%clk 0:00:25]} 45. Kd1 {[%clk 0:00:14.6]} 45...
Rxg2 {[%clk 0:00:22.8]} 46. Kc1 {[%clk 0:00:12.3]} 46... Rc2+ {[%clk 0:00:22.6]}
47. Kb1 {[%clk 0:00:12.2]} 47... Re2 {[%clk 0:00:22.4]} 48. f5 {[%clk
0:00:11.6]} 48... Kc3 {[%clk 0:00:22.3]} 49. Rc7+ {[%clk 0:00:11.5]} 49... Kb4
{[%clk 0:00:21.8]} 50. e7 {[%clk 0:00:11.6]} 50... Kxa5 {[%clk 0:00:22.2]} 51.
Kc1 {[%clk 0:00:11.4]} 51... Kb6 {[%clk 0:00:21.1]} 52. Rd7 {[%clk 0:00:11.8]}
52... Kc6 {[%clk 0:00:19]} 53. Rxd4 {[%clk 0:00:11.9]} 53... Rxe7 {[%clk
0:00:19.3]} 54. Rh4 {[%clk 0:00:11]} 54... h6 {[%clk 0:00:19.2]} 55. f6 {[%clk
0:00:11.1]} 55... gxf6 {[%clk 0:00:18.1]} 56. Rxh6 {[%clk 0:00:11.3]} 56... Rf7
{[%clk 0:00:19]} 57. Kd2 {[%clk 0:00:11.2]} 57... Kd5 {[%clk 0:00:19.6]} 58. Ke3
{[%clk 0:00:11.6]} 58... Ke5 {[%clk 0:00:19.9]} 59. Kf3 {[%clk 0:00:11.8]} 59...
Rb7 {[%clk 0:00:19.4]} 60. Rh5+ {[%clk 0:00:11.7]} 60... f5 {[%clk 0:00:19.4]}
61. Rh8 {[%clk 0:00:11.9]} 61... Rb3+ {[%clk 0:00:20]} 62. Kf2 {[%clk 0:00:12]}
62... Kf4 {[%clk 0:00:20.3]} 63. Rh4+ {[%clk 0:00:11.7]} 63... Kg5 {[%clk
0:00:20.6]} 64. Ra4 {[%clk 0:00:12.3]} 64... Rb2+ {[%clk 0:00:21.1]} 65. Kg3
{[%clk 0:00:11.9]} 65... Rb3+ {[%clk 0:00:21.5]} 66. Kg2 {[%clk 0:00:11.9]}
66... Rb1 {[%clk 0:00:21.7]} 67. h4+ {[%clk 0:00:11.1]} 67... Kh5 {[%clk
0:00:21.6]} 68. Kg3 {[%clk 0:00:11.4]} 68... Rf1 {[%clk 0:00:20.9]} 69. Kg2
{[%clk 0:00:10.8]} 69... Rb1 {[%clk 0:00:19.6]} 70. Kg3 {[%clk 0:00:10.5]} 70...
Rh1 {[%clk 0:00:19.8]} 71. Rf4 {[%clk 0:00:09]} 71... Kg6 {[%clk 0:00:19.2]} 72.
Ra4 {[%clk 0:00:08.7]} 72... Rg1+ {[%clk 0:00:19.1]} 73. Kf2 {[%clk 0:00:08.5]}
73... Rb1 {[%clk 0:00:17.9]} 74. Kg3 {[%clk 0:00:07.3]} 74... Rf1 {[%clk
0:00:16.5]} 75. Kg2 {[%clk 0:00:07.2]} 75... Rc1 {[%clk 0:00:15.8]} 76. Kg3
{[%clk 0:00:07.1]} 76... Rc2 {[%clk 0:00:15]} 77. Kf3 {[%clk 0:00:06.7]} 77...
Kf6 {[%clk 0:00:12.9]} 78. Ra6+ {[%clk 0:00:05.9]} 78... Ke5 {[%clk 0:00:13.2]}
79. Ra5+ {[%clk 0:00:06.1]} 79... Kf6 {[%clk 0:00:13.6]} 80. Ra6+ {[%clk
0:00:06.3]} 80... Ke7 {[%clk 0:00:12.8]} 81. Kf4 {[%clk 0:00:05.9]} 81... Rf2+
{[%clk 0:00:12.2]} 82. Ke5 {[%clk 0:00:05.5]} 82... f4 {[%clk 0:00:12.1]} 83.
Ra3 {[%clk 0:00:04.9]} 83... Kf7 {[%clk 0:00:08.7]} 84. Ke4 {[%clk 0:00:04.6]}
84... Kg6 {[%clk 0:00:08.9]} 85. Rf3 {[%clk 0:00:04.5]} 85... Rh2 {[%clk
0:00:06.9]} 86. Rxf4 {[%clk 0:00:04.2]} 86... Kh5 {[%clk 0:00:07.4]} 87. Rf5+
{[%clk 0:00:03.8]} 87... Kxh4 {[%clk 0:00:06.8]} 88. Rf8 {[%clk 0:00:03.8]}
88... Kg5 {[%clk 0:00:06.9]} 89. Rg8+ {[%clk 0:00:02.5]} 89... Kf6 {[%clk
0:00:07.3]} 90. Ra8 {[%clk 0:00:03.4]} 90... Rh4+ {[%clk 0:00:06.9]} 91. Kf3
{[%clk 0:00:03.8]} 91... Rh5 {[%clk 0:00:07.4]} 92. Kg3 {[%clk 0:00:04.7]} 92...
Ke7 {[%clk 0:00:07.6]} 93. Ra6 {[%clk 0:00:05.1]} 93... Rc5 {[%clk 0:00:07.8]}
94. Kf3 {[%clk 0:00:04.8]} 94... Rc4 {[%clk 0:00:07.7]} 95. Ke3 {[%clk
0:00:05.2]} 95... Rb4 {[%clk 0:00:08.2]} 96. Kd3 {[%clk 0:00:05.4]} 96... Rh4
{[%clk 0:00:09.1]} 97. Ke3 {[%clk 0:00:05.7]} 97... Kd7 {[%clk 0:00:09.8]} 98.
Kd3 {[%clk 0:00:05.6]} 98... Rh3+ {[%clk 0:00:10.3]} 99. Ke4 {[%clk 0:00:05]}
99... Rh5 {[%clk 0:00:11.2]} 100. Kd4 {[%clk 0:00:04.6]} 100... Kc7 {[%clk
0:00:11.5]} 101. Rg6 {[%clk 0:00:03.2]} 101... Rh4+ {[%clk 0:00:12.4]} 102. Kd5
{[%clk 0:00:03]} 102... Kd7 {[%clk 0:00:12.9]} 103. Rg7+ {[%clk 0:00:02.7]}
103... Ke8 {[%clk 0:00:13.4]} 104. Ra7 {[%clk 0:00:03]} 104... Rh5+ {[%clk
0:00:13.8]} 105. Ke6 {[%clk 0:00:03]} 105... Rh6+ {[%clk 0:00:14.3]} 106. Ke5
{[%clk 0:00:03.2]} 106... Rh1 {[%clk 0:00:15.1]} 107. Ke6 {[%clk 0:00:03.3]}
107... Kd8 {[%clk 0:00:16]} 108. Kd6 {[%clk 0:00:03]} 108... Kc8 {[%clk
0:00:15.9]} 109. Kc6 {[%clk 0:00:03.1]} 109... Rh6+ {[%clk 0:00:14.6]} 110. Kd5
{[%clk 0:00:02.7]} 110... Rh5+ {[%clk 0:00:15.5]} 111. Kd6 {[%clk 0:00:01.5]}
111... Kb8 {[%clk 0:00:16.4]} 112. Rd7 {[%clk 0:00:01.3]} 112... Rh6+ {[%clk
0:00:17]} 113. Kd5 {[%clk 0:00:01.2]} 113... Rh5+ {[%clk 0:00:17.1]} 114. Kd6
{[%clk 0:00:01.1]} 114... Rh3 {[%clk 0:00:17.6]} 115. Kd5 {[%clk 0:00:02]}
115... Kc8 {[%clk 0:00:17.7]} 116. Rg7 {[%clk 0:00:01.7]} 116... Rh5+ {[%clk
0:00:18.6]} 117. Ke6 {[%clk 0:00:02.5]} 117... Rh6+ {[%clk 0:00:18.6]} 118. Ke5
{[%clk 0:00:03.3]} 118... Rc6 {[%clk 0:00:18.9]} 119. Kf5 {[%clk 0:00:03.2]}
119... Rc5+ {[%clk 0:00:19.1]} 120. Ke6 {[%clk 0:00:02.9]} 120... Rc1 {[%clk
0:00:19.7]} 121. Kd6 {[%clk 0:00:02.9]} 121... Rd1+ {[%clk 0:00:20]} 122. Ke6
{[%clk 0:00:03.1]} 122... Rc1 {[%clk 0:00:20.6]} 123. Kd6 {[%clk 0:00:03.4]}
123... Ra1 {[%clk 0:00:20.6]} 124. Ke6 {[%clk 0:00:04.1]} 124... Ra6+ {[%clk
0:00:20.5]} 125. Ke5 {[%clk 0:00:04.6]} 125... Rh6 {[%clk 0:00:21.1]} 126. Kd5
{[%clk 0:00:04.9]} 126... Kd8 {[%clk 0:00:21.5]} 127. Kc5 {[%clk 0:00:04.4]}
127... Rh5+ {[%clk 0:00:21.9]} 128. Kd4 {[%clk 0:00:03.4]} 128... Rh6 {[%clk
0:00:22.8]} 129. Kd5 {[%clk 0:00:03.1]} 129... Ke8 {[%clk 0:00:23.7]} 130. Ke5
{[%clk 0:00:03.2]} 130... Rh5+ {[%clk 0:00:24.2]} 131. Kd6 {[%clk 0:00:02.4]}
131... Kf8 {[%clk 0:00:24.6]} 132. Ra7 {[%clk 0:00:02.4]} 132... Rh6+ {[%clk
0:00:25]} 133. Kd5 {[%clk 0:00:02.6]} 133... Rh5+ {[%clk 0:00:25.2]} 134. Ke4
{[%clk 0:00:03]} 134... Rh1 {[%clk 0:00:26.1]} 135. Kd3 {[%clk 0:00:03.2]}
135... Rd1+ {[%clk 0:00:25.6]} 136. Ke3 {[%clk 0:00:03.5]} 136... Rb1 {[%clk
0:00:26.2]} 137. Kd2 {[%clk 0:00:03.8]} 137... Rb6 {[%clk 0:00:26.6]} 1/2-1/2

[Event "*** Titled Tuesday Blitz"]
[Site "Chess.com"]
[Date "2020.10.27"]
[Round "7"]
[White "TomasKapitanchuk"]
[Black "northridgehawk"]
[Result "0-1"]
[WhiteElo "2418"]
[BlackElo "2271"]
[TimeControl "180+1"]
[EndTime "11:13:45 PDT"]
[Termination "northridgehawk won by resignation"]

1. e4 {[%clk 0:03:00.9]} 1... e5 {[%clk 0:02:59.6]} 2. Nf3 {[%clk 0:03:01.4]}
2... Nc6 {[%clk 0:02:59.6]} 3. Bc4 {[%clk 0:03:01.9]} 3... Nf6 {[%clk
0:02:50.4]} 4. d3 {[%clk 0:03:01.8]} 4... Bc5 {[%clk 0:02:50.9]} 5. c3 {[%clk
0:03:00.8]} 5... d6 {[%clk 0:02:45.3]} 6. O-O {[%clk 0:02:59.6]} 6... a6 {[%clk
0:02:45.4]} 7. a4 {[%clk 0:02:59.4]} 7... Ba7 {[%clk 0:02:45.9]} 8. Nbd2 {[%clk
0:02:59.5]} 8... h6 {[%clk 0:02:46.5]} 9. Re1 {[%clk 0:02:59.5]} 9... O-O {[%clk
0:02:46.1]} 10. h3 {[%clk 0:02:58.9]} 10... Qe7 {[%clk 0:02:43.1]} 11. Nf1
{[%clk 0:02:58.7]} 11... Be6 {[%clk 0:02:43.8]} 12. Bxe6 {[%clk 0:02:54.6]}
12... Qxe6 {[%clk 0:02:44.7]} 13. Ng3 {[%clk 0:02:53.4]} 13... Rad8 {[%clk
0:02:43.5]} 14. Qe2 {[%clk 0:02:47.3]} 14... d5 {[%clk 0:02:43.5]} 15. exd5
{[%clk 0:02:44.1]} 15... Qxd5 {[%clk 0:02:42.4]} 16. Nxe5 {[%clk 0:02:17]} 16...
Nxe5 {[%clk 0:02:40.5]} 17. Qxe5 {[%clk 0:02:10.8]} 17... Rfe8 {[%clk
0:02:40.4]} 0-1

[Event "*** Titled Tuesday Blitz"]
[Site "Chess.com"]
[Date "2020.10.27"]
[Round "7"]
[White "TomiLen"]
[Black "Snegokhod"]
[Result "1/2-1/2"]
[WhiteElo "2640"]
[BlackElo "2457"]
[TimeControl "180+1"]
[EndTime "11:14:20 PDT"]
[Termination "Game drawn by repetition"]

1. d4 {[%clk 0:03:00.9]} 1... Nf6 {[%clk 0:02:59.9]} 2. Bg5 {[%clk 0:03:01]}
2... Ne4 {[%clk 0:02:59.9]} 3. Bf4 {[%clk 0:03:01.1]} 3... d5 {[%clk 0:02:59.8]}
4. e3 {[%clk 0:03:00.5]} 4... e6 {[%clk 0:02:57.5]} 5. Nd2 {[%clk 0:02:59]} 5...
Nxd2 {[%clk 0:02:56.6]} 6. Qxd2 {[%clk 0:02:59.3]} 6... Bd6 {[%clk 0:02:57.3]}
7. Bg3 {[%clk 0:02:58.9]} 7... c5 {[%clk 0:02:57.1]} 8. c3 {[%clk 0:02:58.1]}
8... Nc6 {[%clk 0:02:57.1]} 9. Nf3 {[%clk 0:02:57.3]} 9... O-O {[%clk
0:02:55.7]} 10. Bd3 {[%clk 0:02:57.4]} 10... f5 {[%clk 0:02:54.8]} 11. O-O
{[%clk 0:02:56.8]} 11... c4 {[%clk 0:02:47.9]} 12. Bc2 {[%clk 0:02:54.5]} 12...
b5 {[%clk 0:02:47.9]} 13. Ne5 {[%clk 0:02:47.4]} 13... Bxe5 {[%clk 0:02:38.9]}
14. dxe5 {[%clk 0:02:44.4]} 14... Qe7 {[%clk 0:02:34.1]} 15. f4 {[%clk
0:02:27.2]} 15... Bd7 {[%clk 0:02:29.9]} 16. Qe1 {[%clk 0:02:22.6]} 16... Rab8
{[%clk 0:02:28.8]} 17. Bh4 {[%clk 0:02:20.5]} 17... Qc5 {[%clk 0:02:28.3]} 18.
Bf2 {[%clk 0:02:14.4]} 18... Qe7 {[%clk 0:02:22.4]} 19. Bh4 {[%clk 0:02:14.5]}
19... Qc5 {[%clk 0:02:22.4]} 20. Bf2 {[%clk 0:02:14.5]} 20... Qe7 {[%clk
0:02:11.8]} 21. Bh4 {[%clk 0:02:13.6]} 1/2-1/2

[Event "*** Titled Tuesday Blitz"]
[Site "Chess.com"]
[Date "2020.10.27"]
[Round "7"]
[White "Kapibara_Warri0r"]
[Black "zivicd"]
[Result "0-1"]
[WhiteElo "2130"]
[BlackElo "2289"]
[TimeControl "180+1"]
[EndTime "11:14:32 PDT"]
[Termination "zivicd won by resignation"]

1. e4 {[%clk 0:03:00.6]} 1... c5 {[%clk 0:02:58.4]} 2. Nf3 {[%clk 0:02:56.6]}
2... e6 {[%clk 0:02:56.2]} 3. d4 {[%clk 0:02:56.5]} 3... cxd4 {[%clk 0:02:56.2]}
4. Nxd4 {[%clk 0:02:57.4]} 4... a6 {[%clk 0:02:56.2]} 5. c4 {[%clk 0:02:56.8]}
5... Nf6 {[%clk 0:02:55]} 6. Nc3 {[%clk 0:02:56.3]} 6... Qc7 {[%clk 0:02:55]} 7.
a3 {[%clk 0:02:53.9]} 7... d6 {[%clk 0:02:53]} 8. Be3 {[%clk 0:02:52.9]} 8...
Be7 {[%clk 0:02:53]} 9. Bd3 {[%clk 0:02:51.9]} 9... b6 {[%clk 0:02:53.2]} 10.
O-O {[%clk 0:02:51.7]} 10... Nbd7 {[%clk 0:02:52.5]} 11. f4 {[%clk 0:02:44.8]}
11... Bb7 {[%clk 0:02:50.1]} 12. Qf3 {[%clk 0:02:42.7]} 12... Rc8 {[%clk
0:02:28.8]} 13. b4 {[%clk 0:02:35.4]} 13... b5 {[%clk 0:02:24.3]} 14. Ncxb5
{[%clk 0:02:05]} 14... axb5 {[%clk 0:02:23.6]} 15. Nxb5 {[%clk 0:02:04.9]} 15...
Qb8 {[%clk 0:02:21.8]} 16. Ba7 {[%clk 0:01:57.7]} 16... Qa8 {[%clk 0:02:18.8]}
17. Bb6 {[%clk 0:01:57.5]} 17... Nxb6 {[%clk 0:02:16.4]} 0-1

[Event "*** Titled Tuesday Blitz"]
[Site "Chess.com"]
[Date "2020.10.27"]
[Round "7"]
[White "pedro_nascimento85"]
[Black "kreonx"]
[Result "0-1"]
[WhiteElo "1991"]
[BlackElo "2328"]
[TimeControl "180+1"]
[EndTime "11:14:47 PDT"]
[Termination "kreonx won by resignation"]

1. d4 {[%clk 0:02:57.9]} 1... f5 {[%clk 0:02:58.6]} 2. e4 {[%clk 0:02:56.7]}
2... fxe4 {[%clk 0:02:57.3]} 3. Nc3 {[%clk 0:02:56]} 3... Nf6 {[%clk 0:02:56.5]}
4. Bg5 {[%clk 0:02:54.9]} 4... Nc6 {[%clk 0:02:56.9]} 5. d5 {[%clk 0:02:53.8]}
5... Ne5 {[%clk 0:02:56.8]} 6. Qd4 {[%clk 0:02:53.8]} 6... Nf7 {[%clk 0:02:56]}
7. Bxf6 {[%clk 0:02:53.9]} 7... exf6 {[%clk 0:02:55.9]} 8. Nxe4 {[%clk 0:02:51]}
8... Be7 {[%clk 0:02:49.3]} 9. O-O-O {[%clk 0:02:49.7]} 9... d6 {[%clk
0:02:45.1]} 10. Bd3 {[%clk 0:02:42.9]} 10... O-O {[%clk 0:02:44.7]} 11. f3
{[%clk 0:02:36.6]} 11... f5 {[%clk 0:02:34.5]} 12. Ng3 {[%clk 0:02:33.6]} 12...
Bf6 {[%clk 0:02:27.1]} 13. Qb4 {[%clk 0:02:31.2]} 13... a5 {[%clk 0:02:24]} 14.
Qd2 {[%clk 0:02:18.8]} 14... g6 {[%clk 0:02:20.4]} 15. Kb1 {[%clk 0:02:16.4]}
15... Ne5 {[%clk 0:02:19.8]} 16. Bf1 {[%clk 0:02:11.2]} 16... b5 {[%clk
0:02:14.4]} 17. N1e2 {[%clk 0:02:07.2]} 17... Nc4 {[%clk 0:02:12]} 18. Qh6
{[%clk 0:01:58.4]} 18... Bg5 {[%clk 0:02:04.7]} 19. Qh3 {[%clk 0:01:56.6]} 19...
f4 {[%clk 0:02:04.7]} 0-1